bitfinex/quotes_ETHUSD_20241018
["timestamp","ask_amount","ask_price","bid_price","bid_amount"]
[1729210212897,5.53158784,2607.3,2607.0,1.02622651]
[1729210214283,5.53158784,2607.3,2606.8,4.64511]
[1729210214484,5.53158784,2607.3,2606.8,8.48113]
[1729210215096,5.53158784,2607.3,2606.8,4.64502]
[1729210215561,1.69613784,2607.3,2606.9,3.83596]
[1729210215990,5.53137784,2607.4,2606.9,3.83596]
[1729210216313,1.69613784,2607.3,2607.0,0.848098]
[1729210217409,5.53152784,2607.3,2607.0,0.848098]
[1729210220801,3.83539,2607.3,2607.0,0.848098]
[1729210221117,5.53152784,2607.3,2606.9,3.83595]
[1729210221729,5.53152784,2607.3,2606.8,4.64502]
[1729210224528,9.36702784,2607.3,2606.8,4.64502]
[1729210224833,1.69613784,2606.9,2606.5,4.5806552]
[1729210224978,1.69613784,2606.6,2606.3,0.8065]
[1729210225173,1.69613784,2606.8,2606.3,4.64327]
[1729210225421,1.69613784,2606.8,2606.4,3.8367]
[1729210225629,4.63656,2606.9,2606.4,3.8367]
[1729210226728,2.90046103,2607.3,2606.7,5.53228784]
[1729210226929,4.66324,2607.4,2606.9,3.83586]
[1729210227131,3.83534,2607.4,2607.0,0.7764]
[1729210227426,3.8351,2607.5,2607.0,4.61219]
[1729210228222,5.53123784,2607.5,2607.0,4.61219]
[1729210228527,1.69613784,2607.4,2607.0,4.61219]
[1729210228908,1.69613784,2607.4,2607.0,1.79083578]
[1729210229144,1.69613784,2607.3,2607.0,1.79083578]
[1729210229543,1.69613784,2607.4,2607.0,4.61221]
[1729210230707,5.53137784,2607.4,2607.0,0.7764]
[1729210231226,1.69613784,2607.4,2607.0,4.61219]
[1729210231431,1.69613784,2607.4,2607.0,0.7764]
[1729210231743,1.69613784,2607.3,2607.0,0.7764]
[1729210231916,5.53140784,2607.4,2607.1,0.461235]
[1729210232114,1.69613784,2607.4,2607.1,0.461235]
[1729210232307,1.69613784,2607.4,2607.0,4.61219]
[1729210232503,5.53139784,2607.4,2607.0,0.7764]
[1729210233343,1.69613784,2607.4,2607.0,4.61219]
[1729210235146,1.69613784,2607.4,2607.0,4.80851798]
[1729210235448,1.69613784,2607.4,2607.0,4.80846798]
[1729210235630,1.69613784,2607.4,2607.1,0.4808468]
[1729210237048,1.69613784,2607.3,2607.1,0.4808468]
[1729210237214,1.69613784,2607.3,2607.0,0.97272798]
[1729210237541,1.69613784,2607.3,2607.0,4.6122]
[1729210237949,1.69613784,2607.4,2607.0,4.6122]
[1729210238448,1.69613784,2607.4,2607.0,4.61215]
[1729210242052,5.53144784,2607.4,2607.0,0.7764]
[1729210242372,5.53144784,2607.4,2607.0,4.61221]
[1729210246240,1.69613784,2607.3,2607.0,0.7764]
[1729210246575,5.53153784,2607.3,2607.0,0.7764]
[1729210246788,1.69613784,2607.3,2607.0,0.7764]
[1729210246954,1.69613784,2607.3,2606.7,0.7794]
[1729210246955,3.83585,2607.0,2606.7,0.7794]
[1729210247279,5.53181784,2607.1,2606.7,0.7794]
[1729210250702,3.83568,2607.1,2606.7,0.7794]
[1729210251472,3.83568,2607.1,2606.7,1.5808552]
[1729210251855,5.53181784,2607.1,2606.7,1.5808552]
[1729210253205,1.69613784,2607.1,2606.7,1.5808552]
[1729210254700,1.69613784,2607.1,2606.7,5.4170952]
[1729210254998,1.69613784,2607.1,2606.7,8.0086351]
[1729210256300,1.69613784,2607.1,2606.7,7.2071799]
[1729210256475,6.73599103,2607.2,2606.7,8.56128819]
[1729210256658,10.57162103,2607.2,2606.7,8.56128819]
[1729210258586,3.83574,2607.1,2606.7,4.72504819]
[1729210259106,5.53187784,2607.1,2606.7,4.72504819]
[1729210259411,5.53187784,2607.1,2606.7,3.3709399]
[1729210259756,5.53198784,2607.0,2606.7,3.3709399]
[1729210260466,1.69613784,2606.8,2606.7,3.3709399]
[1729210260654,5.53219784,2606.9,2606.7,2.5915399]
[1729210260859,5.53225784,2606.8,2606.7,2.5915399]
[1729210261264,3.83663,2606.5,2606.2,0.8014552]
[1729210261460,1.69613784,2606.4,2606.1,0.8212]
[1729210261768,5.53286784,2606.4,2606.1,0.8212]
[1729210262359,1.69613784,2606.6,2606.1,0.8212]
[1729210262772,5.53264784,2606.6,2606.1,4.65833]
[1729210262998,1.69613784,2606.5,2606.1,4.65833]
[1729210263308,5.53272784,2606.5,2606.1,0.8212]
[1729210264199,1.69613784,2606.5,2606.1,4.65834]
[1729210264569,5.53255784,2606.6,2606.1,4.65834]
[1729210264917,1.69613784,2606.5,2606.1,4.65834]
[1729210266516,5.53255784,2606.6,2606.1,4.65834]
[1729210267005,1.69613784,2606.5,2606.1,4.65834]
[1729210267206,5.53284784,2606.4,2606.1,0.8212]
[1729210267376,9.36950784,2606.5,2606.1,0.8212]
[1729210267581,3.83671,2606.4,2606.1,0.8212]
[1729210267784,5.53281784,2606.5,2606.1,0.8212]
[1729210267972,5.53279784,2606.5,2606.1,0.8212]
[1729210268385,5.53313784,2606.2,2605.9,0.7668]
[1729210268672,1.69613784,2606.0,2605.9,0.7668]
[1729210268870,1.69613784,2606.0,2605.8,2.5915399]
[1729210269410,1.69613784,2605.9,2605.8,2.5915399]
[1729210269612,6.08691362,2605.9,2605.8,2.5915399]
[1729210270028,3.83798,2605.6,2605.1,0.8121]
[1729210270178,1.69613784,2605.4,2605.1,0.8121]
[1729210270521,1.69613784,2605.3,2605.1,0.8121]
[1729210270724,1.69613784,2605.4,2605.1,0.8121]
[1729210270891,1.69613784,2605.3,2605.1,0.8121]
[1729210271220,1.69613784,2605.4,2605.1,0.8121]
[1729210271778,1.69613784,2605.3,2605.1,0.8121]
[1729210272199,1.69613784,2605.2,2604.9,2.5915399]
[1729210272381,1.69613784,2605.1,2604.9,2.5915399]
[1729210273097,1.69613784,2605.2,2604.9,2.5915399]
[1729210274779,1.69613784,2605.1,2604.9,2.5915399]
[1729210275233,1.69613784,2605.2,2604.9,2.5915399]
[1729210280017,1.69613784,2605.2,2604.9,2.78125064]
[1729210280750,5.53462784,2605.2,2604.9,2.78125064]
[1729210280976,1.69613784,2605.0,2604.9,2.5915399]
[1729210281259,6.30273784,2605.1,2604.9,2.5915399]
[1729210281466,1.69613784,2605.0,2604.9,2.5915399]
[1729210281667,6.30273784,2605.1,2604.9,2.5915399]
[1729210282557,1.69613784,2605.1,2604.9,2.5915399]
[1729210283255,6.28635784,2605.3,2604.9,2.5915399]
[1729210283454,5.53455784,2605.3,2605.0,0.7994]
[1729210283663,1.69613784,2605.2,2605.0,0.7994]
[1729210285644,5.53455784,2605.3,2605.0,0.7994]
[1729210286154,1.69613784,2605.4,2605.0,4.63816]
[1729210286361,8.42805,2605.5,2605.0,4.63816]
[1729210286362,1.69613784,2605.3,2605.0,4.63816]
[1729210286565,1.69613784,2605.3,2605.0,0.7994]
[1729210286742,1.69613784,2605.2,2605.0,0.7994]
[1729210286936,1.69613784,2605.3,2605.0,0.7994]
[1729210288538,1.69613784,2605.2,2605.0,0.7994]
[1729210289341,1.69613784,2605.3,2605.0,0.7994]
[1729210289826,1.69613784,2605.2,2605.0,0.7994]
[1729210290030,1.69613784,2605.3,2605.0,0.7994]
[1729210290526,1.69613784,2605.2,2605.0,0.7994]
[1729210291967,1.69613784,2605.3,2605.0,0.7994]
[1729210295965,3.83784,2605.7,2605.2,1.69613784]
[1729210296168,5.53397784,2605.7,2605.0,2.57231152]
[1729210296339,1.69613784,2605.4,2605.0,4.63816]
[1729210296681,3.83806,2605.5,2605.1,1.10685099]
[1729210296836,3.83806,2605.5,2605.0,4.63816]
[1729210297038,5.53419784,2605.5,2605.0,4.63816]
[1729210297238,1.69613784,2605.5,2605.1,3.83859]
[1729210297681,5.53409784,2605.6,2605.1,3.83853]
[1729210297884,1.69613784,2605.5,2605.1,3.83853]
[1729210299480,5.53418784,2605.5,2605.1,3.83853]
[1729210301558,5.53405784,2605.6,2605.1,3.83853]
[1729210301959,1.69613784,2605.5,2605.1,3.83853]
[1729210302281,5.53402784,2605.6,2605.2,0.8141]
[1729210302866,1.69613784,2605.5,2605.2,0.8141]
[1729210303068,1.69613784,2605.4,2605.2,0.8141]
[1729210303570,1.69613784,2605.4,2604.9,3.4056399]
[1729210303571,5.53453784,2605.3,2604.9,3.4056399]
[1729210303799,1.69613784,2605.1,2604.9,3.4056399]
[1729210304117,5.53463784,2605.2,2604.9,3.4056399]
[1729210304262,5.53463784,2605.2,2604.9,0.8141]
[1729210304702,1.69613784,2605.2,2604.9,0.8141]
[1729210304886,3.83837,2605.3,2604.9,0.8141]
[1729210305061,5.53450784,2605.3,2604.9,0.8141]
[1729210305402,1.69613784,2605.3,2604.9,0.8141]
[1729210305975,5.53451784,2605.3,2604.9,0.8141]
[1729210306881,1.69613784,2605.3,2604.9,4.65301]
[1729210307066,1.69613784,2605.3,2604.9,0.8141]
[1729210307267,5.53448784,2605.3,2604.9,0.8141]
[1729210308100,5.53448784,2605.3,2604.9,4.653]
[1729210309270,5.53448784,2605.3,2604.9,0.8141]
[1729210309271,5.53463784,2605.2,2604.9,0.8141]
[1729210309470,5.53446784,2605.3,2604.9,0.8141]
[1729210309975,5.53446784,2605.3,2604.9,4.65301]
[1729210313467,3.83814,2605.5,2604.9,4.65301]
[1729210313468,5.53427784,2605.5,2604.9,4.65301]
[1729210313776,5.53432784,2605.4,2604.9,8.49183]
[1729210314293,5.53432784,2605.4,2604.9,4.65292]
[1729210314482,5.53432784,2605.4,2604.9,5.4543752]
[1729210314876,3.83814,2605.5,2605.0,0.8121]
[1729210315096,3.83814,2605.5,2605.1,3.83862]
[1729210315300,5.53427784,2605.5,2605.0,4.65085]
[1729210315627,1.69613784,2605.5,2605.1,3.83861]
[1729210316588,1.69613784,2605.5,2605.0,1.6135552]
[1729210316840,5.53426784,2605.5,2605.0,6.70355031]
[1729210319185,5.53434784,2605.4,2605.0,2.86487031]
[1729210319612,5.53434784,2605.4,2605.0,1.6135552]
[1729210320954,5.53446784,2605.3,2605.0,1.6135552]
[1729210321156,5.53475784,2605.1,2604.9,0.8014552]
[1729210321314,1.69613784,2605.0,2604.8,1.6058552]
[1729210321510,1.69613784,2605.0,2604.8,0.8044]
[1729210321735,3.83862,2605.1,2604.8,0.8044]
[1729210321963,1.69613784,2605.0,2604.8,0.8044]
[1729210322977,5.53475784,2605.1,2604.8,0.8044]
[1729210326562,1.69613784,2605.0,2604.8,0.8044]
[1729210327183,3.83862,2605.1,2604.8,0.8044]
[1729210327386,5.53475784,2605.1,2604.8,0.8044]
[1729210333011,1.69613784,2605.0,2604.8,0.8044]
[1729210333340,5.53475784,2605.1,2604.8,0.8044]
[1729210335009,1.69613784,2605.0,2604.8,0.8044]
[1729210335207,1.69613784,2605.0,2604.7,0.8014552]
[1729210335208,1.69613784,2604.9,2604.6,1.5759552]
[1729210335451,5.53491784,2605.0,2604.6,5.4153052]
[1729210335603,1.69613784,2605.0,2604.7,0.8014552]
[1729210335810,1.69613784,2605.0,2604.6,5.4153052]
[1729210336150,1.69613784,2604.8,2604.6,2.41374763]
[1729210336306,1.69613784,2604.7,2604.5,0.8014552]
[1729210336507,1.69613784,2604.8,2604.5,0.8014552]
[1729210336702,1.69613784,2604.8,2604.4,1.5759552]
[1729210336703,1.69613784,2604.7,2604.4,1.5759552]
[1729210336904,5.53524784,2604.8,2604.4,1.5759552]
[1729210337351,1.69613784,2604.6,2604.4,0.7745]
[1729210337832,5.53563784,2604.5,2604.3,0.8014552]
[1729210338033,3.8395,2604.5,2604.2,0.7827]
[1729210338659,1.69613784,2604.6,2604.2,0.7827]
[1729210338860,5.53562784,2604.6,2604.2,0.7827]
[1729210339145,3.83958,2604.5,2604.2,0.7827]
[1729210339316,1.69613784,2604.6,2604.2,0.7827]
[1729210339524,5.53551784,2604.6,2604.2,0.7827]
[1729210341423,3.83938,2604.6,2604.2,0.7827]
[1729210341825,5.53551784,2604.6,2604.2,0.7827]
[1729210342225,3.83924,2604.7,2604.2,0.7827]
[1729210342226,5.53537784,2604.7,2604.2,0.7827]
[1729210342635,3.83924,2604.7,2604.2,4.62263]
[1729210342834,2.46673784,2604.8,2604.3,3.83979]
[1729210343041,1.69613784,2604.7,2604.3,3.83979]
[1729210343644,1.69613784,2604.7,2604.3,7.67951]
[1729210343839,2.46673784,2604.8,2604.3,3.83972]
[1729210344151,1.69613784,2604.7,2604.3,3.83972]
[1729210344953,6.30581784,2604.8,2604.3,3.83972]
[1729210346228,6.00581784,2604.8,2604.3,3.83972]
[1729210346424,0.4706,2604.8,2604.3,6.6533012]
[1729210346626,3.83902,2604.9,2604.5,0.7524]
[1729210346990,5.53484784,2605.1,2604.6,3.83932]
[1729210347159,3.83871,2605.1,2604.6,3.83932]
[1729210347334,1.69613784,2605.0,2604.6,3.83932]
[1729210348444,5.53484784,2605.1,2604.6,3.83932]
[1729210349657,5.53483784,2605.1,2604.6,3.83932]
[1729210349860,3.8387,2605.1,2604.6,4.85205378]
[1729210350061,5.53483784,2605.1,2604.6,4.85205378]
[1729210351033,3.83877,2605.0,2604.6,1.01273378]
[1729210351464,3.83877,2605.0,2604.5,8.43133]
[1729210351465,1.69613784,2605.0,2604.5,8.43133]
[1729210351765,3.8387,2605.1,2604.5,8.43133]
[1729210351766,9.37356784,2605.1,2604.5,8.43133]
[1729210353163,1.69613784,2605.0,2604.5,8.43133]
[1729210353588,7.67743,2605.1,2604.5,8.43133]
[1729210353896,5.04240319,2605.5,2605.0,0.8021]
[1729210354192,8.87972319,2605.8,2605.2,0.8021]
[1729210354349,3.83769,2605.8,2605.2,4.64046]
[1729210354547,1.98672319,2605.9,2605.3,3.83831]
[1729210354752,0.7727,2606.1,2605.6,0.7678]
[1729210354978,3.83744,2605.9,2605.6,0.7678]
[1729210355351,3.83718,2606.1,2605.6,0.7678]
[1729210355670,3.83718,2606.1,2605.6,4.60561]
[1729210355995,5.53331784,2606.1,2605.6,4.60561]
[1729210356586,1.69613784,2606.0,2605.6,4.60561]
[1729210356793,3.83718,2606.1,2605.6,4.60561]
[1729210357457,3.83718,2606.1,2605.6,0.7678]
[1729210357785,3.8373,2606.0,2605.6,0.7678]
[1729210358486,5.53331784,2606.1,2605.6,0.7678]
[1729210358673,3.83731,2606.0,2605.6,0.7678]
[1729210360565,1.69613784,2605.8,2605.4,0.8116]
[1729210360763,1.69613784,2605.8,2605.2,0.8116]
[1729210360764,3.83804,2605.5,2605.2,0.8116]
[1729210362655,3.83821,2605.4,2604.9,6.30634784]
[1729210362862,3.83803,2605.5,2605.0,5.53487784]
[1729210365797,3.83812,2605.5,2605.0,1.69613784]
[1729210366397,3.83812,2605.5,2605.0,5.53488784]
[1729210369580,3.83812,2605.5,2605.1,1.69613784]
[1729210371764,3.83812,2605.5,2605.2,1.69613784]
[1729210376356,3.83812,2605.5,2605.1,1.69613784]
[1729210377655,7.67627,2605.5,2605.1,1.69613784]
[1729210377960,3.83812,2605.5,2605.1,1.69613784]
[1729210379756,7.67625,2605.5,2605.1,1.69613784]
[1729210379954,3.83812,2605.5,2605.1,1.69613784]
[1729210380459,7.67625,2605.5,2605.1,1.69613784]
[1729210382422,3.83812,2605.5,2605.1,1.69613784]
[1729210383528,3.83826,2605.4,2605.1,1.69613784]
[1729210384254,7.67629,2605.5,2605.1,1.69613784]
[1729210384444,3.83812,2605.5,2605.1,1.69613784]
[1729210385734,7.67625,2605.5,2605.1,1.69613784]
[1729210386046,3.83812,2605.5,2605.1,1.69613784]
[1729210386745,3.83826,2605.4,2605.1,1.69613784]
[1729210386949,3.83812,2605.5,2605.1,1.69613784]
[1729210387250,7.67626,2605.5,2605.1,1.69613784]
[1729210387878,3.83827,2605.4,2605.1,1.69613784]
[1729210388377,3.83812,2605.5,2605.1,1.69613784]
[1729210388734,7.67623,2605.5,2605.1,1.69613784]
[1729210389174,3.83811,2605.5,2605.1,1.69613784]
[1729210390049,3.83811,2605.5,2605.2,0.7966]
[1729210390271,7.67624,2605.5,2605.2,0.7966]
[1729210391955,3.83811,2605.5,2605.2,0.7966]
[1729210392365,3.83811,2605.5,2605.2,2.49273784]
[1729210392571,3.83789,2605.6,2605.3,1.69613784]
[1729210392783,3.8377,2605.8,2605.4,1.69613784]
[1729210392984,3.83781,2605.7,2605.3,1.69613784]
[1729210396056,3.83783,2605.7,2605.3,1.69613784]
[1729210398285,4.63773,2605.7,2605.2,0.7966]
[1729210398445,3.83797,2605.6,2605.2,0.7966]
[1729210399881,3.83797,2605.6,2605.2,2.49273784]
[1729210400085,3.83797,2605.6,2605.2,6.33118784]
[1729210400271,1.20432319,2605.8,2605.4,1.69613784]
[1729210400479,3.83775,2605.7,2605.4,1.69613784]
[1729210400782,3.83759,2605.8,2605.5,0.7614]
[1729210401889,5.79808319,2605.9,2605.5,0.7614]
[1729210402051,3.83776,2605.7,2605.5,0.7614]
[1729210402556,1.96052319,2605.9,2605.5,0.7614]
[1729210402766,3.83777,2605.7,2605.5,0.7614]
[1729210406678,3.83825,2605.4,2605.1,0.8014552]
[1729210406880,4.59833,2605.5,2605.0,3.25759304]
[1729210407080,4.59833,2605.5,2605.1,1.69613784]
[1729210407398,8.43647,2605.5,2605.1,1.69613784]
[1729210407773,4.59833,2605.5,2605.1,2.49759304]
[1729210408316,4.59833,2605.5,2605.1,1.69613784]
[1729210415128,3.30190209,2605.8,2605.1,1.69613784]
[1729210415129,1.20432319,2605.8,2605.4,6.36499784]
[1729210415310,1.20432319,2605.8,2605.6,1.69613784]
[1729210415528,5.79506319,2605.9,2605.5,1.69613784]
[1729210415704,5.79506319,2605.9,2605.4,6.36499784]
[1729210416130,5.79504319,2605.9,2605.4,6.36499784]
[1729210416441,9.63257319,2605.9,2605.4,6.36499784]
[1729210416805,9.63257319,2605.9,2605.5,1.69613784]
[1729210417008,9.63257319,2605.9,2605.4,6.36499784]
[1729210421097,9.63257319,2605.9,2605.4,6.55705509]
[1729210421644,9.63260319,2605.9,2605.4,6.55705509]
[1729210421936,3.8377,2605.8,2605.4,0.8307]
[1729210422923,3.83763,2605.8,2605.4,0.8307]
[1729210423235,5.79504319,2605.9,2605.4,0.8307]
[1729210423541,9.63259319,2605.9,2605.4,0.8307]
[1729210423722,3.83773,2605.8,2605.4,0.8307]
[1729210427497,5.79504319,2605.9,2605.4,0.8307]
[1729210427699,3.83759,2605.8,2605.4,0.8307]
[1729210432832,3.8379,2605.6,2605.2,0.8252]
[1729210433438,3.83805,2605.5,2605.2,0.8252]
[1729210433743,3.8379,2605.6,2605.2,0.8252]
[1729210433744,4.5917,2605.6,2605.2,0.8252]
[1729210438154,4.5917,2605.6,2605.1,0.8014552]
[1729210438318,4.5917,2605.6,2605.0,5.8368428]
[1729210438319,3.8383,2605.4,2605.0,0.7959]
[1729210438525,3.83841,2605.3,2605.0,0.7959]
[1729210439422,3.83833,2605.3,2605.0,0.7959]
[1729210440529,3.83819,2605.4,2605.0,0.7959]
[1729210441019,3.83819,2605.4,2605.0,6.33079784]
[1729210441219,3.83819,2605.4,2605.0,2.49203784]
[1729210441957,5.04236319,2605.5,2605.1,1.69613784]
[1729210442167,3.83804,2605.5,2605.1,1.69613784]
[1729210442864,3.83804,2605.5,2605.0,5.4360452]
[1729210442865,3.83804,2605.5,2605.0,3.29349304]
[1729210443025,3.83804,2605.5,2605.1,1.69613784]
[1729210443222,7.67617,2605.5,2605.1,1.69613784]
[1729210443629,3.83804,2605.5,2605.1,1.69613784]
[1729210445832,7.67616,2605.5,2605.1,1.69613784]
[1729210446176,3.83804,2605.5,2605.1,1.69613784]
[1729210447547,7.67617,2605.5,2605.1,1.69613784]
[1729210447747,3.83804,2605.5,2605.1,1.69613784]
[1729210448152,7.67617,2605.5,2605.1,1.69613784]
[1729210448684,3.83804,2605.5,2605.1,1.69613784]
[1729210449038,7.67618,2605.5,2605.1,1.69613784]
[1729210450161,3.83804,2605.5,2605.1,1.69613784]
[1729210450876,7.67617,2605.5,2605.1,1.69613784]
[1729210451090,3.83804,2605.5,2605.1,1.69613784]
[1729210453384,7.67622,2605.5,2605.1,1.69613784]
[1729210453992,7.67616,2605.5,2605.1,1.69613784]
[1729210455681,3.83818,2605.4,2605.1,1.69613784]
[1729210456048,1.20432319,2605.7,2605.1,1.69613784]
[1729210456248,3.83818,2605.4,2605.1,1.69613784]
[1729210459694,5.04233319,2605.6,2605.1,1.69613784]
[1729210459893,3.83801,2605.6,2605.3,0.8178]
[1729210460559,3.83799,2605.6,2605.3,0.8178]
[1729210462995,4.65919,2605.8,2605.3,2.51393784]
[1729210463291,3.8376,2605.8,2605.3,3.22932414]
[1729210463464,3.8376,2605.8,2605.3,7.06756414]
[1729210465261,5.53373784,2605.8,2605.3,5.3714263]
[1729210465457,3.8376,2605.8,2605.3,5.3715063]
[1729210467131,3.8376,2605.8,2605.3,7.06764414]
[1729210467282,3.8376,2605.8,2605.4,1.17075693]
[1729210471122,5.44315425,2606.0,2605.6,1.69613784]
[1729210471324,3.83738,2606.0,2605.5,2.51843784]
[1729210471618,7.67479,2606.0,2605.5,2.51843784]
[1729210471841,3.83738,2606.0,2605.5,2.51843784]
[1729210472001,3.83738,2606.0,2605.6,1.69613784]
[1729210475221,7.92259209,2606.2,2605.3,1.5346863]
[1729210475222,3.83782,2605.7,2605.3,1.5346863]
[1729210475423,3.83782,2605.7,2605.3,0.8193]
[1729210475788,3.83782,2605.7,2605.3,2.51543784]
[1729210477271,3.83782,2605.7,2605.3,0.8193]
[1729210477727,3.83782,2605.7,2605.3,2.51543784]
[1729210477931,3.83782,2605.7,2605.4,1.0993663]
[1729210478103,3.83782,2605.7,2605.3,2.51543784]
[1729210480445,3.83782,2605.7,2605.3,0.8193]
[1729210481727,3.83782,2605.7,2605.3,2.51543784]
[1729210487662,3.83782,2605.7,2605.3,0.8193]
[1729210488907,3.83754,2605.9,2605.3,6.35374784]
[1729210489107,3.83754,2605.9,2605.4,1.0993583]
[1729210489405,3.83754,2605.9,2605.5,0.7913]
[1729210489733,14.90458115,2606.5,2605.9,0.7913]
[1729210489936,3.83666,2606.5,2606.0,1.69613784]
[1729210490244,7.67328,2606.5,2606.0,1.69613784]
[1729210490545,3.83671,2606.4,2605.9,4.62874]
[1729210490843,3.83671,2606.4,2605.9,7.25164836]
[1729210492350,3.83671,2606.4,2605.9,3.41420836]
[1729210492547,3.83671,2606.4,2605.9,7.25161836]
[1729210492711,3.83671,2606.4,2605.9,3.41420836]
[1729210494811,5.53294784,2606.4,2605.9,1.71807052]
[1729210495007,3.83694,2606.3,2605.9,1.71807052]
[1729210495553,3.83702,2606.2,2605.9,1.71807052]
[1729210495709,3.83702,2606.2,2605.6,7.67562]
[1729210495710,5.53335784,2606.1,2605.7,0.825]
[1729210495910,3.83722,2606.1,2605.7,0.825]
[1729210496519,6.34215784,2606.2,2605.7,0.825]
[1729210496741,6.34215784,2606.2,2605.7,4.66272]
[1729210497045,4.64602,2606.2,2605.7,5.12180743]
[1729210497546,4.64602,2606.2,2605.7,2.98022527]
[1729210497750,3.83716,2606.1,2605.7,1.28408743]
[1729210498135,4.64602,2606.2,2605.7,1.28408743]
[1729210499012,4.64602,2606.2,2605.7,5.12181743]
[1729210501137,0.809,2606.2,2605.8,3.83759]
[1729210501336,3.83768,2605.8,2605.5,0.7511]
[1729210501542,3.83768,2605.8,2605.3,3.83824]
[1729210501543,5.53381784,2605.8,2605.3,0.7914]
[1729210501848,3.83768,2605.8,2605.3,0.7914]
[1729210502056,7.6754,2605.8,2605.3,0.7914]
[1729210502222,3.83768,2605.8,2605.3,0.7914]
[1729210502552,3.83768,2605.8,2605.3,2.48753784]
[1729210503211,3.8374,2606.0,2605.5,1.69613784]
[1729210503407,3.83738,2606.0,2605.5,1.69613784]
[1729210503631,3.83746,2605.9,2605.4,5.53425784]
[1729210504070,5.53351784,2606.0,2605.5,3.83802]
[1729210504282,3.83738,2606.0,2605.5,5.53415784]
[1729210504436,3.83738,2606.0,2605.5,3.83802]
[1729210504632,3.83738,2606.0,2605.5,5.53407784]
[1729210504976,5.53351784,2606.0,2605.5,3.83794]
[1729210505173,3.83738,2606.0,2605.5,3.83794]
[1729210505673,5.53351784,2606.0,2605.5,3.83794]
[1729210506364,3.83738,2606.0,2605.7,0.8123]
[1729210507577,3.83745,2605.9,2605.5,4.61374]
[1729210508139,3.83745,2605.9,2605.5,0.7758]
[1729210508440,5.53358784,2605.9,2605.5,0.7758]
[1729210508640,3.83729,2606.0,2605.5,6.30992784]
[1729210508856,3.83729,2606.0,2605.5,4.61379]
[1729210509342,5.53342784,2606.0,2605.5,0.7758]
[1729210509577,3.83768,2605.8,2605.5,0.7758]
[1729210515799,6.54930462,2606.0,2605.5,0.7758]
[1729210515800,10.38674462,2606.0,2605.5,0.7758]
[1729210515953,6.54930462,2606.0,2605.5,0.7758]
[1729210516159,3.8375,2605.9,2605.5,0.7758]
[1729210518994,3.8375,2605.9,2605.5,0.97208404]
[1729210520201,3.8375,2605.9,2605.5,0.7758]
[1729210520997,3.83762,2605.8,2605.5,0.7758]
[1729210522540,3.83774,2605.7,2605.5,0.7758]
[1729210522909,3.83774,2605.7,2605.2,10.17434304]
[1729210522910,3.83774,2605.7,2605.3,0.8326]
[1729210523209,3.83774,2605.7,2605.3,4.67091]
[1729210523811,4.6546,2605.8,2605.3,4.67091]
[1729210524205,1.69613784,2605.4,2605.1,1.6340552]
[1729210524537,5.53467784,2605.2,2604.9,0.8326]
[1729210524832,5.53467784,2605.2,2604.7,5.4732552]
[1729210524990,3.83854,2605.2,2604.7,5.4732552]
[1729210525195,5.53467784,2605.2,2604.7,4.6718]
[1729210525638,3.83854,2605.2,2604.7,4.6718]
[1729210525993,3.83849,2605.2,2604.7,4.6718]
[1729210526205,3.83849,2605.2,2604.7,8.51093]
[1729210526404,3.83849,2605.2,2604.7,6.36786784]
[1729210526606,3.83828,2605.4,2604.8,5.53518784]
[1729210526952,5.53441784,2605.4,2604.8,3.83905]
[1729210527648,3.83835,2605.3,2604.8,3.83905]
[1729210528004,5.53448784,2605.3,2604.8,3.83905]
[1729210528206,3.83828,2605.4,2604.8,3.83905]
[1729210528411,3.83828,2605.4,2604.9,3.83891]
[1729210528647,9.37269784,2605.4,2604.9,3.83891]
[1729210529733,3.83843,2605.3,2604.8,5.53519784]
[1729210529937,3.83843,2605.3,2604.8,3.83906]
[1729210530311,3.83843,2605.3,2604.8,5.07998553]
[1729210530845,3.83843,2605.3,2604.8,6.77612337]
[1729210531046,3.83843,2605.3,2604.8,2.93706337]
[1729210531211,3.83832,2605.3,2604.8,1.24092553]
[1729210531550,3.83832,2605.3,2604.8,5.07989553]
[1729210532546,3.83832,2605.3,2604.8,3.83897]
[1729210532733,5.53500784,2605.0,2604.7,0.8326]
[1729210532937,5.53512784,2604.9,2604.5,3.8036]
[1729210533116,5.53500784,2605.0,2604.5,7.64308]
[1729210533318,9.37388784,2605.0,2604.5,7.64308]
[1729210533514,5.53508784,2604.9,2604.5,3.8036]
[1729210533726,1.69613784,2604.9,2604.5,0.8036]
[1729210534331,3.83894,2604.9,2604.5,0.8036]
[1729210536061,3.83887,2605.0,2604.5,4.64307]
[1729210536266,7.67775,2605.0,2604.5,4.64307]
[1729210536560,7.67772,2605.0,2604.5,4.64309]
[1729210536964,9.37385784,2605.0,2604.5,4.64309]
[1729210537466,7.67771,2605.0,2604.5,4.64309]
[1729210538459,3.83885,2605.0,2604.5,4.64309]
[1729210538975,7.6777,2605.0,2604.5,6.33922784]
[1729210539122,3.83885,2605.0,2604.5,6.33922784]
[1729210540633,4.61012,2605.1,2604.5,6.33914784]
[1729210540963,3.83857,2605.2,2604.7,6.35092784]
[1729210541749,3.83863,2605.1,2604.7,0.8157]
[1729210541983,3.83857,2605.2,2604.7,0.8157]
[1729210542188,3.83857,2605.2,2604.7,5.31698213]
[1729210542792,3.83873,2605.1,2604.7,1.47778213]
[1729210542991,3.83873,2605.1,2604.7,0.8157]
[1729210543850,5.53486784,2605.1,2604.7,0.8157]
[1729210545004,3.83873,2605.1,2604.7,0.8157]
[1729210545650,5.53486784,2605.1,2604.7,0.8157]
[1729210546156,3.83856,2605.2,2604.7,4.6549]
[1729210546357,3.83856,2605.2,2604.7,5.69300892]
[1729210547300,3.83834,2605.3,2604.8,4.65475]
[1729210547457,3.83834,2605.3,2604.8,7.67802]
[1729210547791,3.83834,2605.3,2604.9,0.8157]
[1729210547958,3.83805,2605.5,2605.1,0.8157]
[1729210548163,3.83812,2605.5,2605.1,0.8157]
[1729210549869,3.83797,2605.6,2605.1,0.8157]
[1729210550074,7.67542,2605.8,2605.2,2.51183784]
[1729210550285,3.83775,2605.7,2605.2,6.35029784]
[1729210550493,3.83775,2605.7,2605.2,7.37685913]
[1729210550785,3.83775,2605.7,2605.2,5.68072129]
[1729210551365,3.83789,2605.6,2605.2,1.84226129]